[Event "Titled Tuesday Blitz March 08 Late 2022"]
[White "Bellahcene, Bilel"]
[Black "Erdogdu, Mert"]
[WhiteFideId "696358"]
[BlackFideId "6301495"]
[WhiteElo "2562"]
[BlackElo "2485"]
[Result "0-1"]
[Round "08"]
[TimeControl "180+1"]
[Date "2022.03.08"]
[WhiteClock "0:00:05"]
[BlackClock "0:00:23"]

1. d4 {[%clk 0:03:00]}  d5 {[%clk 0:02:59]} 2. Bf4 {[%clk 0:03:00]}  e6 {[%clk 0:02:57]} 3. e3 {[%clk 0:03:01]}  Nf6 {[%clk 0:02:57]} 4. Nd2 {[%clk 0:03:00]}  Bd6 {[%clk 0:02:57]} 5. Bg3 {[%clk 0:03:01]}  c5 {[%clk 0:02:56]} 6. c3 {[%clk 0:03:01]}  O-O {[%clk 0:02:55]} 7. Bd3 {[%clk 0:03:00]}  Nc6 {[%clk 0:02:54]} 8. f4 {[%clk 0:03:00]}  Ne7 {[%clk 0:02:43]} 9. Bh4 {[%clk 0:03:00]}  Nf5 {[%clk 0:02:41]} 10. Bxf6 {[%clk 0:02:57]}  Qxf6 {[%clk 0:02:41]} 11. Qe2 {[%clk 0:02:44]}  cxd4 {[%clk 0:02:36]} 12. cxd4 {[%clk 0:02:42]}  Bd7 {[%clk 0:02:34]} 13. Ngf3 {[%clk 0:02:41]}  Rfc8 {[%clk 0:02:31]} 14. g4 {[%clk 0:02:36]}  Nxe3 {[%clk 0:02:25]} 15. Qxe3 {[%clk 0:02:31]}  Bxf4 {[%clk 0:02:25]} 16. g5 {[%clk 0:02:12]}  Bxe3 {[%clk 0:02:21]} 17. gxf6 {[%clk 0:02:11]}  gxf6 {[%clk 0:02:22]} 18. Ke2 {[%clk 0:02:08]}  Bh6 {[%clk 0:02:19]} 19. Rhg1+ {[%clk 0:02:00]}  Kf8 {[%clk 0:02:11]} 20. Rac1 {[%clk 0:01:48]}  Ke7 {[%clk 0:02:04]} 21. b4 {[%clk 0:01:41]}  Bf4 {[%clk 0:01:47]} 22. Rc5 {[%clk 0:01:21]}  h6 {[%clk 0:01:41]} 23. Nb3 {[%clk 0:01:10]}  b6 {[%clk 0:01:35]} 24. Rxc8 {[%clk 0:01:04]}  Rxc8 {[%clk 0:01:36]} 25. h3 {[%clk 0:00:47]}  Bd6 {[%clk 0:01:22]} 26. a3 {[%clk 0:00:44]}  Rc3 {[%clk 0:01:16]} 27. Nfd2 {[%clk 0:00:41]}  Ba4 {[%clk 0:01:08]} 28. Rc1 {[%clk 0:00:15]}  Rxb3 {[%clk 0:00:34]} 29. Nxb3 {[%clk 0:00:15]}  Bxb3 {[%clk 0:00:34]} 30. Bb5 {[%clk 0:00:15]}  a5 {[%clk 0:00:33]} 31. Rc8 {[%clk 0:00:13]}  f5 {[%clk 0:00:32]} 32. Rc3 {[%clk 0:00:12]}  Ba2 {[%clk 0:00:31]} 33. bxa5 {[%clk 0:00:09]}  bxa5 {[%clk 0:00:31]} 34. Rc6 {[%clk 0:00:09]}  Bxa3 {[%clk 0:00:24]} 35. Rc7+ {[%clk 0:00:07]}  Kf6 {[%clk 0:00:25]} 36. Be8 {[%clk 0:00:07]}  Be7 {[%clk 0:00:25]} 37. Ra7 {[%clk 0:00:07]}  Bc4+ {[%clk 0:00:25]} 38. Kf3 {[%clk 0:00:06]}  Bd3 {[%clk 0:00:24]} 39. Rxa5 {[%clk 0:00:06]}  Be4+ {[%clk 0:00:25]} 40. Ke3 {[%clk 0:00:06]}  Kg7 {[%clk 0:00:23]} 41. Ra7 {[%clk 0:00:05]}  Kf8 {[%clk 0:00:23]} 42. Ba4 {[%clk 0:00:05]}  Bg5+ {[%clk 0:00:22]} 43. Ke2 {[%clk 0:00:04]}  f4 {[%clk 0:00:23]} 44. Bb5 {[%clk 0:00:04]}  f3+ {[%clk 0:00:22]} 45. Kf1 {[%clk 0:00:04]}  Be3 {[%clk 0:00:22]} 46. Ra4 {[%clk 0:00:03]}  Kg7 {[%clk 0:00:22]} 47. Rb4 {[%clk 0:00:02]}  Bf5 {[%clk 0:00:21]} 48. Ba4 {[%clk 0:00:02]}  Bxh3+ {[%clk 0:00:21]} 49. Ke1 {[%clk 0:00:02]}  f2+ {[%clk 0:00:21]} 50. Ke2 {[%clk 0:00:03]}  f1=Q+ {[%clk 0:00:22]} 51. Kxe3 {[%clk 0:00:04]}  Qe1+ {[%clk 0:00:21]} 52. Kf4 {[%clk 0:00:03]}  Qxb4 {[%clk 0:00:22]} 53. Kg3 {[%clk 0:00:03]}  Qxa4 {[%clk 0:00:22]} 54. Kh4 {[%clk 0:00:04]}  Qxd4+ {[%clk 0:00:22]} 55. Kh5 {[%clk 0:00:05]}  Qg4# {[%clk 0:00:23]} 0-1


[Site "https://www.chess.com"]

[Event "Titled Tuesday Blitz March 08 Late 2022"]
[White "Bellissimo, Joseph F."]
[Black "Moral Garcia, Serafin"]
[WhiteFideId "2609843"]
[BlackFideId "2201925"]
[WhiteElo "2061"]
[BlackElo "2228"]
[Result "1-0"]
[Round "08"]
[TimeControl "180+1"]
[Date "2022.03.09"]
[WhiteClock "0:02:00"]
[BlackClock "0:00:55"]

1. e4 {[%clk 0:02:58]}  e5 {[%clk 0:02:59]} 2. Nf3 {[%clk 0:02:58]}  Nc6 {[%clk 0:02:59]} 3. Bc4 {[%clk 0:02:57]}  Bc5 {[%clk 0:02:59]} 4. c3 {[%clk 0:02:56]}  Nf6 {[%clk 0:02:59]} 5. d3 {[%clk 0:02:56]}  a6 {[%clk 0:02:58]} 6. Bb3 {[%clk 0:02:55]}  Ba7 {[%clk 0:02:58]} 7. h3 {[%clk 0:02:55]}  d6 {[%clk 0:02:54]} 8. Nbd2 {[%clk 0:02:55]}  O-O {[%clk 0:02:53]} 9. Nf1 {[%clk 0:02:51]}  Be6 {[%clk 0:02:52]} 10. Bc2 {[%clk 0:02:51]}  d5 {[%clk 0:02:51]} 11. Qe2 {[%clk 0:02:51]}  Re8 {[%clk 0:02:45]} 12. Ng3 {[%clk 0:02:52]}  h6 {[%clk 0:02:37]} 13. O-O {[%clk 0:02:51]}  Qd7 {[%clk 0:02:34]} 14. Kh2 {[%clk 0:02:45]}  Rad8 {[%clk 0:02:33]} 15. Nh4 {[%clk 0:02:45]}  Ne7 {[%clk 0:02:25]} 16. f4 {[%clk 0:02:42]}  exf4 {[%clk 0:02:22]} 17. Bxf4 {[%clk 0:02:43]}  Nh7 {[%clk 0:02:15]} 18. Nh5 {[%clk 0:02:34]}  dxe4 {[%clk 0:02:10]} 19. dxe4 {[%clk 0:02:31]}  Nf8 {[%clk 0:01:57]} 20. Bxh6 {[%clk 0:02:28]}  Qd6+ {[%clk 0:01:49]} 21. e5 {[%clk 0:02:26]}  Bc4 {[%clk 0:01:34]} 22. Qxc4 {[%clk 0:02:20]}  Qxh6 {[%clk 0:01:34]} 23. Qxf7+ {[%clk 0:02:18]}  Kh8 {[%clk 0:01:33]} 24. Rad1 {[%clk 0:02:02]}  Qe3 {[%clk 0:00:55]} 25. Qxg7# {[%clk 0:02:00]} 1-0


[Site "https://www.chess.com"]

[Event "Titled Tuesday Blitz March 08 Late 2022"]
[White "Bluebaum, Matthias"]
[Black "Rostovtsev, Dmitry"]
[WhiteFideId "24651516"]
[BlackFideId "34278320"]
[WhiteElo "2550"]
[BlackElo "2359"]
[Result "1-0"]
[Round "08"]
[TimeControl "180+1"]
[Date "2022.03.08"]
[WhiteClock "0:00:59"]
[BlackClock "0:00:01"]

1. b3 {[%clk 0:03:00]}  e5 {[%clk 0:02:52]} 2. Bb2 {[%clk 0:03:01]}  Nc6 {[%clk 0:02:50]} 3. e3 {[%clk 0:03:01]}  d5 {[%clk 0:02:47]} 4. Bb5 {[%clk 0:03:01]}  f6 {[%clk 0:02:47]} 5. f4 {[%clk 0:02:57]}  exf4 {[%clk 0:02:45]} 6. exf4 {[%clk 0:02:55]}  Bc5 {[%clk 0:02:45]} 7. Qh5+ {[%clk 0:02:51]}  g6 {[%clk 0:02:41]} 8. Qe2+ {[%clk 0:02:52]}  Kf7 {[%clk 0:02:38]} 9. Bxc6 {[%clk 0:02:45]}  bxc6 {[%clk 0:02:38]} 10. Nc3 {[%clk 0:02:45]}  Qe7 {[%clk 0:02:34]} 11. O-O-O {[%clk 0:02:43]}  Qxe2 {[%clk 0:02:33]} 12. Ngxe2 {[%clk 0:02:43]}  Ne7 {[%clk 0:02:32]} 13. Na4 {[%clk 0:02:44]}  Bd6 {[%clk 0:02:32]} 14. Rde1 {[%clk 0:02:40]}  Re8 {[%clk 0:02:28]} 15. Nd4 {[%clk 0:02:31]}  Bd7 {[%clk 0:02:24]} 16. Nf3 {[%clk 0:02:24]}  Nf5 {[%clk 0:02:15]} 17. g4 {[%clk 0:02:18]}  Ng7 {[%clk 0:02:06]} 18. g5 {[%clk 0:02:18]}  Bxf4 {[%clk 0:01:58]} 19. gxf6 {[%clk 0:02:08]}  Nh5 {[%clk 0:01:58]} 20. Ne5+ {[%clk 0:02:03]}  Bxe5 {[%clk 0:01:58]} 21. Bxe5 {[%clk 0:02:04]}  Bf5 {[%clk 0:01:53]} 22. Bxc7 {[%clk 0:02:00]}  Nxf6 {[%clk 0:01:52]} 23. d3 {[%clk 0:02:00]}  Ng4 {[%clk 0:01:46]} 24. Kd2 {[%clk 0:01:58]}  h5 {[%clk 0:01:44]} 25. Kc3 {[%clk 0:01:56]}  h4 {[%clk 0:01:39]} 26. Nc5 {[%clk 0:01:55]}  h3 {[%clk 0:01:37]} 27. Kb4 {[%clk 0:01:42]}  a5+ {[%clk 0:01:20]} 28. Ka4 {[%clk 0:01:41]}  Ne3 {[%clk 0:01:17]} 29. Re2 {[%clk 0:01:32]}  d4 {[%clk 0:00:48]} 30. Rhe1 {[%clk 0:01:23]}  Nxc2 {[%clk 0:00:38]} 31. Rxe8 {[%clk 0:01:22]}  Rxe8 {[%clk 0:00:39]} 32. Rxe8 {[%clk 0:01:23]}  Kxe8 {[%clk 0:00:40]} 33. Kxa5 {[%clk 0:01:22]}  Ne1 {[%clk 0:00:39]} 34. Be5 {[%clk 0:01:18]}  Nf3 {[%clk 0:00:25]} 35. Bg3 {[%clk 0:01:18]}  Nd2 {[%clk 0:00:18]} 36. a4 {[%clk 0:01:18]}  Nf1 {[%clk 0:00:17]} 37. Be5 {[%clk 0:01:17]}  g5 {[%clk 0:00:17]} 38. Kb6 {[%clk 0:01:09]}  g4 {[%clk 0:00:17]} 39. a5 {[%clk 0:01:10]}  g3 {[%clk 0:00:11]} 40. a6 {[%clk 0:01:11]}  g2 {[%clk 0:00:07]} 41. a7 {[%clk 0:01:12]}  g1=Q {[%clk 0:00:07]} 42. a8=Q+ {[%clk 0:01:12]}  Kf7 {[%clk 0:00:07]} 43. Qb7+ {[%clk 0:01:11]}  Ke8 {[%clk 0:00:03]} 44. Qb8+ {[%clk 0:01:09]}  Kf7 {[%clk 0:00:03]} 45. Qc7+ {[%clk 0:01:09]}  Ke8 {[%clk 0:00:03]} 46. Nb7 {[%clk 0:01:05]}  Be6 {[%clk 0:00:01]} 47. Qd8+ {[%clk 0:01:00]}  Kf7 {[%clk 0:00:01]} 48. Qf6+ {[%clk 0:01:01]}  Ke8 {[%clk 0:00:01]} 49. Qxe6+ {[%clk 0:00:59]}  Kf8 {[%clk 0:00:02]} 50. Qf6+ {[%clk 0:01:00]}  Kg8 {[%clk 0:00:02]} 51. Nd6 {[%clk 0:00:59]}  Ne3 {[%clk 0:00:01]} 52. Qh8# {[%clk 0:00:59]} 1-0


[Site "https://www.chess.com"]

[Event "Titled Tuesday Blitz March 08 Late 2022"]
[White "Brunner, Nicolas"]
[Black "Csonka, Balazs"]
[WhiteFideId "620246"]
[BlackFideId "742910"]
[WhiteElo "2372"]
[BlackElo "2404"]
[Result "1-0"]
[Round "08"]
[TimeControl "180+1"]
[Date "2022.03.09"]
[WhiteClock "0:00:03"]
[BlackClock "0:00:02"]

1. d4 {[%clk 0:03:00]}  Nf6 {[%clk 0:02:59]} 2. c4 {[%clk 0:02:59]}  e6 {[%clk 0:02:59]} 3. g3 {[%clk 0:02:59]}  d5 {[%clk 0:02:57]} 4. Bg2 {[%clk 0:02:58]}  dxc4 {[%clk 0:02:57]} 5. Nf3 {[%clk 0:02:57]}  Bd7 {[%clk 0:02:52]} 6. Ne5 {[%clk 0:02:54]}  Bc6 {[%clk 0:02:50]} 7. Nxc6 {[%clk 0:02:53]}  Nxc6 {[%clk 0:02:51]} 8. O-O {[%clk 0:02:51]}  Qd7 {[%clk 0:02:50]} 9. e3 {[%clk 0:02:49]}  Rd8 {[%clk 0:02:47]} 10. Qe2 {[%clk 0:02:43]}  e5 {[%clk 0:02:43]} 11. Qxc4 {[%clk 0:02:20]}  exd4 {[%clk 0:02:28]} 12. exd4 {[%clk 0:02:20]}  Nxd4 {[%clk 0:01:53]} 13. Bxb7 {[%clk 0:02:06]}  c6 {[%clk 0:01:37]} 14. Ba6 {[%clk 0:01:06]}  Qh3 {[%clk 0:01:24]} 15. f3 {[%clk 0:00:56]}  h5 {[%clk 0:00:21]} 16. Be3 {[%clk 0:00:46]}  h4 {[%clk 0:00:13]} 17. Bxd4 {[%clk 0:00:45]}  hxg3 {[%clk 0:00:13]} 18. Qxc6+ {[%clk 0:00:45]}  Nd7 {[%clk 0:00:09]} 19. Re1+ {[%clk 0:00:41]}  Be7 {[%clk 0:00:10]} 20. Qc2 {[%clk 0:00:19]}  Kf8 {[%clk 0:00:10]} 21. Qg2 {[%clk 0:00:15]}  Qxh2+ {[%clk 0:00:10]} 22. Qxh2 {[%clk 0:00:15]}  Rxh2 {[%clk 0:00:11]} 23. Nc3 {[%clk 0:00:14]}  Ne5 {[%clk 0:00:06]} 24. Rxe5 {[%clk 0:00:11]}  Rxd4 {[%clk 0:00:07]} 25. Rae1 {[%clk 0:00:09]}  Rd7 {[%clk 0:00:07]} 26. Ne4 {[%clk 0:00:07]}  f6 {[%clk 0:00:04]} 27. Rb5 {[%clk 0:00:06]}  Rc2 {[%clk 0:00:02]} 28. Nxg3 {[%clk 0:00:06]}  Bc5+ {[%clk 0:00:02]} 29. Rxc5 {[%clk 0:00:04]}  Rxc5 {[%clk 0:00:02]} 30. Ne4 {[%clk 0:00:03]}  Re5 {[%clk 0:00:02]} 31. Bc4 {[%clk 0:00:03]}  f5 {[%clk 0:00:02]} 32. Kf2 {[%clk 0:00:03]}  fxe4 {[%clk 0:00:03]} 33. fxe4 {[%clk 0:00:03]}  Rd2+ {[%clk 0:00:03]} 34. Kf3 {[%clk 0:00:04]}  Rxb2 {[%clk 0:00:03]} 35. Rd1 {[%clk 0:00:04]}  Rb6 {[%clk 0:00:03]} 36. Rd7 {[%clk 0:00:04]}  Rf6+ {[%clk 0:00:03]} 37. Ke3 {[%clk 0:00:04]}  a5 {[%clk 0:00:04]} 38. Rd8+ {[%clk 0:00:04]}  Re8 {[%clk 0:00:04]} 39. Rd7 {[%clk 0:00:04]}  Re7 {[%clk 0:00:04]} 40. Rd8+ {[%clk 0:00:04]}  Re8 {[%clk 0:00:04]} 41. Rd7 {[%clk 0:00:04]}  g5 {[%clk 0:00:04]} 42. Ra7 {[%clk 0:00:03]}  g4 {[%clk 0:00:04]} 43. Rxa5 {[%clk 0:00:03]}  Rg6 {[%clk 0:00:04]} 44. Rf5+ {[%clk 0:00:03]}  Kg7 {[%clk 0:00:03]} 45. Bf7 {[%clk 0:00:03]}  g3 {[%clk 0:00:02]} 46. Bxg6 {[%clk 0:00:02]}  Kxg6 {[%clk 0:00:02]} 47. Rf3 {[%clk 0:00:02]}  Ra8 {[%clk 0:00:01]} 48. Rxg3+ {[%clk 0:00:03]}  Kf6 {[%clk 0:00:02]} 49. Rg2 {[%clk 0:00:03]}  Ke5 {[%clk 0:00:03]} 50. Rg5+ {[%clk 0:00:03]}  Kf6 {[%clk 0:00:03]} 51. Rf5+ {[%clk 0:00:03]}  Ke6 {[%clk 0:00:02]} 52. Rf2 {[%clk 0:00:03]} 1-0


[Site "https://www.chess.com"]

[Event "Titled Tuesday Blitz March 08 Late 2022"]
[White "Burke, Paul"]
[Black "Osmonbekov, Talaibek"]
[WhiteFideId "2605767"]
[BlackFideId "2017253"]
[WhiteElo "1910"]
[BlackElo "2135"]
[Result "0-1"]
[Round "08"]
[TimeControl "180+1"]
[Date "2022.03.09"]
[WhiteClock "0:01:00"]
[BlackClock "0:01:24"]

1. e4 {[%clk 0:03:00]}  c5 {[%clk 0:02:59]} 2. d4 {[%clk 0:03:00]}  cxd4 {[%clk 0:02:59]} 3. c3 {[%clk 0:03:00]}  d3 {[%clk 0:02:59]} 4. Bxd3 {[%clk 0:02:59]}  g6 {[%clk 0:02:58]} 5. Nf3 {[%clk 0:02:59]}  Bg7 {[%clk 0:02:59]} 6. Bc4 {[%clk 0:02:58]}  Nc6 {[%clk 0:02:57]} 7. Bg5 {[%clk 0:02:58]}  d6 {[%clk 0:02:57]} 8. Qb3 {[%clk 0:02:57]}  Nh6 {[%clk 0:02:38]} 9. Bxh6 {[%clk 0:02:56]}  Bxh6 {[%clk 0:02:39]} 10. Bxf7+ {[%clk 0:02:55]}  Kf8 {[%clk 0:02:39]} 11. Bd5 {[%clk 0:02:50]}  Kg7 {[%clk 0:02:34]} 12. O-O {[%clk 0:02:42]}  Rf8 {[%clk 0:02:34]} 13. Bxc6 {[%clk 0:02:35]}  bxc6 {[%clk 0:02:33]} 14. e5 {[%clk 0:02:35]}  Rxf3 {[%clk 0:02:28]} 15. gxf3 {[%clk 0:02:33]}  Bh3 {[%clk 0:02:28]} 16. Re1 {[%clk 0:02:26]}  e6 {[%clk 0:02:24]} 17. Kh1 {[%clk 0:02:22]}  Qh4 {[%clk 0:02:08]} 18. Qc2 {[%clk 0:02:10]}  d5 {[%clk 0:01:59]} 19. Rg1 {[%clk 0:01:52]}  Rf8 {[%clk 0:01:54]} 20. Qe2 {[%clk 0:01:39]}  Bf4 {[%clk 0:01:43]} 21. Rg3 {[%clk 0:01:35]}  Rf5 {[%clk 0:01:36]} 22. Na3 {[%clk 0:01:23]}  Rh5 {[%clk 0:01:30]} 23. Rag1 {[%clk 0:01:00]}  Bf1 {[%clk 0:01:24]} 0-1


[Site "https://www.chess.com"]

[Event "Titled Tuesday Blitz March 08 Late 2022"]
[White "Butti, Enrique"]
[Black "Sarkar, Justin"]
[WhiteFideId "3700470"]
[BlackFideId "2010011"]
[WhiteElo "2080"]
[BlackElo "2038"]
[Result "0-1"]
[Round "08"]
[TimeControl "180+1"]
[Date "2022.03.09"]
[WhiteClock "0:02:05"]
[BlackClock "0:01:26"]

1. Nf3 {[%clk 0:03:00]}  d5 {[%clk 0:02:53]} 2. c4 {[%clk 0:02:55]}  dxc4 {[%clk 0:02:45]} 3. Na3 {[%clk 0:02:53]}  c5 {[%clk 0:02:36]} 4. Nxc4 {[%clk 0:02:51]}  Nc6 {[%clk 0:02:35]} 5. g3 {[%clk 0:02:51]}  g6 {[%clk 0:02:29]} 6. Bg2 {[%clk 0:02:45]}  Bg7 {[%clk 0:02:28]} 7. O-O {[%clk 0:02:44]}  e5 {[%clk 0:02:25]} 8. d3 {[%clk 0:02:43]}  Nge7 {[%clk 0:02:22]} 9. a3 {[%clk 0:02:42]}  O-O {[%clk 0:02:21]} 10. Rb1 {[%clk 0:02:41]}  Rb8 {[%clk 0:02:08]} 11. b4 {[%clk 0:02:35]}  b5 {[%clk 0:02:04]} 12. Ncd2 {[%clk 0:02:32]}  cxb4 {[%clk 0:01:48]} 13. axb4 {[%clk 0:02:30]}  Nd5 {[%clk 0:01:46]} 14. Qb3 {[%clk 0:02:11]}  Ndxb4 {[%clk 0:01:39]} 15. Ba3 {[%clk 0:02:07]}  Be6 {[%clk 0:01:33]} 16. Qc3 {[%clk 0:02:05]}  e4 {[%clk 0:01:26]} 0-1


[Site "https://www.chess.com"]

[Event "Titled Tuesday Blitz March 08 Late 2022"]
[White "Curtis, John"]
[Black "Sliwicki, Damian"]
[WhiteFideId "3200256"]
[BlackFideId "1127128"]
[WhiteElo "2203"]
[BlackElo "2067"]
[Result "0-1"]
[Round "08"]
[TimeControl "180+1"]
[Date "2022.03.09"]
[WhiteClock "0:00:01"]
[BlackClock "0:00:38"]

1. d4 {[%clk 0:02:52]}  Nf6 {[%clk 0:02:56]} 2. Nf3 {[%clk 0:02:52]}  e6 {[%clk 0:02:57]} 3. Bg5 {[%clk 0:02:51]}  Be7 {[%clk 0:02:55]} 4. Nbd2 {[%clk 0:02:49]}  d5 {[%clk 0:02:54]} 5. Bxf6 {[%clk 0:02:44]}  Bxf6 {[%clk 0:02:54]} 6. e4 {[%clk 0:02:45]}  dxe4 {[%clk 0:02:52]} 7. Nxe4 {[%clk 0:02:44]}  O-O {[%clk 0:02:53]} 8. c3 {[%clk 0:02:44]}  b6 {[%clk 0:02:51]} 9. Bd3 {[%clk 0:02:31]}  Bb7 {[%clk 0:02:51]} 10. Qe2 {[%clk 0:02:32]}  Nd7 {[%clk 0:02:49]} 11. O-O-O {[%clk 0:02:29]}  Be7 {[%clk 0:02:35]} 12. g4 {[%clk 0:02:26]}  Qc8 {[%clk 0:02:07]} 13. g5 {[%clk 0:01:55]}  c5 {[%clk 0:02:06]} 14. Bc2 {[%clk 0:01:46]}  cxd4 {[%clk 0:02:02]} 15. Nxd4 {[%clk 0:01:46]}  Nc5 {[%clk 0:01:58]} 16. h4 {[%clk 0:01:30]}  Nxe4 {[%clk 0:01:27]} 17. Bxe4 {[%clk 0:01:29]}  Bxe4 {[%clk 0:01:28]} 18. Qxe4 {[%clk 0:01:29]}  Qc4 {[%clk 0:01:20]} 19. Kb1 {[%clk 0:01:29]}  Rac8 {[%clk 0:01:10]} 20. Rhg1 {[%clk 0:01:17]}  Rc5 {[%clk 0:00:56]} 21. Qd3 {[%clk 0:00:32]}  Qxd3+ {[%clk 0:00:55]} 22. Rxd3 {[%clk 0:00:32]}  Rfc8 {[%clk 0:00:55]} 23. Rgd1 {[%clk 0:00:31]}  g6 {[%clk 0:00:54]} 24. Nb3 {[%clk 0:00:27]}  Rf5 {[%clk 0:00:52]} 25. Rd7 {[%clk 0:00:27]}  Kf8 {[%clk 0:00:51]} 26. Rxa7 {[%clk 0:00:27]}  Rxf2 {[%clk 0:00:51]} 27. Rdd7 {[%clk 0:00:27]}  Re8 {[%clk 0:00:51]} 28. Nd4 {[%clk 0:00:25]}  Bc5 {[%clk 0:00:49]} 29. Nc6 {[%clk 0:00:22]}  e5 {[%clk 0:00:45]} 30. b4 {[%clk 0:00:21]}  e4 {[%clk 0:00:41]} 31. Rd1 {[%clk 0:00:04]}  e3 {[%clk 0:00:39]} 32. bxc5 {[%clk 0:00:01]}  e2 {[%clk 0:00:38]} 0-1


[Site "https://www.chess.com"]

[Event "Titled Tuesday Blitz March 08 Late 2022"]
[White "Dardha, Daniel"]
[Black "Oparin, Grigoriy"]
[WhiteFideId "240990"]
[BlackFideId "24125890"]
[WhiteElo "2482"]
[BlackElo "2665"]
[Result "1-0"]
[Round "08"]
[TimeControl "180+1"]
[Date "2022.03.08"]
[WhiteClock "0:00:12"]
[BlackClock "0:00:19"]

1. d4 {[%clk 0:02:58]}  Nf6 {[%clk 0:02:59]} 2. c4 {[%clk 0:02:56]}  e6 {[%clk 0:03:00]} 3. Nc3 {[%clk 0:02:54]}  Bb4 {[%clk 0:03:01]} 4. Qc2 {[%clk 0:02:52]}  d6 {[%clk 0:03:01]} 5. e4 {[%clk 0:02:51]}  c5 {[%clk 0:02:58]} 6. d5 {[%clk 0:02:49]}  b5 {[%clk 0:02:50]} 7. dxe6 {[%clk 0:02:45]}  Bxe6 {[%clk 0:02:49]} 8. cxb5 {[%clk 0:02:44]}  O-O {[%clk 0:02:48]} 9. Nf3 {[%clk 0:02:42]}  d5 {[%clk 0:02:48]} 10. exd5 {[%clk 0:02:41]}  Nxd5 {[%clk 0:02:45]} 11. Bd3 {[%clk 0:02:35]}  h6 {[%clk 0:02:10]} 12. O-O {[%clk 0:02:30]}  Nd7 {[%clk 0:02:11]} 13. Rd1 {[%clk 0:02:26]}  N7f6 {[%clk 0:02:06]} 14. Bc4 {[%clk 0:02:16]}  Bxc3 {[%clk 0:01:50]} 15. bxc3 {[%clk 0:02:16]}  Qc7 {[%clk 0:01:43]} 16. h3 {[%clk 0:02:01]}  Rad8 {[%clk 0:01:40]} 17. Bf1 {[%clk 0:02:01]}  Nf4 {[%clk 0:01:31]} 18. Bxf4 {[%clk 0:01:52]}  Qxf4 {[%clk 0:01:31]} 19. Qc1 {[%clk 0:01:47]}  Qa4 {[%clk 0:01:20]} 20. Re1 {[%clk 0:01:47]}  Bd5 {[%clk 0:01:07]} 21. Ne5 {[%clk 0:01:43]}  c4 {[%clk 0:01:06]} 22. Qf4 {[%clk 0:01:37]}  Qxb5 {[%clk 0:01:03]} 23. Rad1 {[%clk 0:01:35]}  Be6 {[%clk 0:00:54]} 24. Nxc4 {[%clk 0:01:13]}  Rxd1 {[%clk 0:00:50]} 25. Rxd1 {[%clk 0:01:13]}  Qa4 {[%clk 0:00:49]} 26. Rd4 {[%clk 0:01:07]}  Qxa2 {[%clk 0:00:49]} 27. Ne3 {[%clk 0:00:56]}  Qb2 {[%clk 0:00:40]} 28. c4 {[%clk 0:00:54]}  a5 {[%clk 0:00:39]} 29. c5 {[%clk 0:00:54]}  Rc8 {[%clk 0:00:34]} 30. Qe5 {[%clk 0:00:50]}  Qc1 {[%clk 0:00:29]} 31. c6 {[%clk 0:00:47]}  Qxc6 {[%clk 0:00:15]} 32. Qxa5 {[%clk 0:00:47]}  Qc7 {[%clk 0:00:15]} 33. Qd2 {[%clk 0:00:46]}  Qe7 {[%clk 0:00:15]} 34. g3 {[%clk 0:00:40]}  g6 {[%clk 0:00:15]} 35. Ng2 {[%clk 0:00:38]}  h5 {[%clk 0:00:15]} 36. Nf4 {[%clk 0:00:38]}  Bf5 {[%clk 0:00:15]} 37. Qb2 {[%clk 0:00:38]}  Rd8 {[%clk 0:00:15]} 38. Rb4 {[%clk 0:00:31]}  Ne4 {[%clk 0:00:14]} 39. Rb7 {[%clk 0:00:27]}  Rd7 {[%clk 0:00:14]} 40. Nd5 {[%clk 0:00:23]}  Qd6 {[%clk 0:00:13]} 41. Rb8+ {[%clk 0:00:10]}  Rd8 {[%clk 0:00:13]} 42. Rb5 {[%clk 0:00:09]}  Be6 {[%clk 0:00:10]} 43. Nf4 {[%clk 0:00:08]}  Bf5 {[%clk 0:00:06]} 44. Rd5 {[%clk 0:00:08]}  Qe7 {[%clk 0:00:06]} 45. Re5 {[%clk 0:00:08]}  Qd6 {[%clk 0:00:06]} 46. Nxh5 {[%clk 0:00:08]}  Qd4 {[%clk 0:00:05]} 47. Re8+ {[%clk 0:00:06]}  Kh7 {[%clk 0:00:04]} 48. Qxd4 {[%clk 0:00:05]}  Rxd4 {[%clk 0:00:05]} 49. Nf4 {[%clk 0:00:05]}  Kg7 {[%clk 0:00:05]} 50. Ne2 {[%clk 0:00:05]}  Rd2 {[%clk 0:00:06]} 51. g4 {[%clk 0:00:06]}  Be6 {[%clk 0:00:05]} 52. Nf4 {[%clk 0:00:04]}  Ng5 {[%clk 0:00:05]} 53. Nxe6+ {[%clk 0:00:04]}  Nxe6 {[%clk 0:00:06]} 54. Rb8 {[%clk 0:00:04]}  Nf4 {[%clk 0:00:06]} 55. Rb4 {[%clk 0:00:05]}  g5 {[%clk 0:00:07]} 56. h4 {[%clk 0:00:06]}  f6 {[%clk 0:00:07]} 57. hxg5 {[%clk 0:00:04]}  fxg5 {[%clk 0:00:08]} 58. Rb5 {[%clk 0:00:05]}  Kf6 {[%clk 0:00:08]} 59. Rf5+ {[%clk 0:00:05]}  Kg6 {[%clk 0:00:09]} 60. Re5 {[%clk 0:00:04]}  Rd1 {[%clk 0:00:09]} 61. Rf5 {[%clk 0:00:03]}  Rc1 {[%clk 0:00:09]} 62. f3 {[%clk 0:00:04]}  Rc2 {[%clk 0:00:09]} 63. Rxf4 {[%clk 0:00:02]}  Rd2 {[%clk 0:00:10]} 64. Rf5 {[%clk 0:00:02]}  Rd4 {[%clk 0:00:10]} 65. Bg2 {[%clk 0:00:03]}  Rd1+ {[%clk 0:00:10]} 66. Kh2 {[%clk 0:00:04]}  Rd2 {[%clk 0:00:11]} 67. Kg3 {[%clk 0:00:05]}  Rd4 {[%clk 0:00:12]} 68. Re5 {[%clk 0:00:05]}  Rd6 {[%clk 0:00:12]} 69. Re4 {[%clk 0:00:06]}  Kf6 {[%clk 0:00:13]} 70. Kf2 {[%clk 0:00:06]}  Rd2+ {[%clk 0:00:13]} 71. Kg3 {[%clk 0:00:06]}  Rd1 {[%clk 0:00:13]} 72. Re2 {[%clk 0:00:06]}  Ra1 {[%clk 0:00:14]} 73. Kf2 {[%clk 0:00:07]}  Rb1 {[%clk 0:00:14]} 74. Bf1 {[%clk 0:00:08]}  Rb3 {[%clk 0:00:15]} 75. Rd2 {[%clk 0:00:08]}  Rb4 {[%clk 0:00:16]} 76. Bd3 {[%clk 0:00:08]}  Rb6 {[%clk 0:00:16]} 77. Ke3 {[%clk 0:00:09]}  Ke5 {[%clk 0:00:17]} 78. Be4 {[%clk 0:00:10]}  Rb3+ {[%clk 0:00:17]} 79. Rd3 {[%clk 0:00:11]}  Rb5 {[%clk 0:00:18]} 80. Rc3 {[%clk 0:00:11]}  Ra5 {[%clk 0:00:18]} 81. Bd3 {[%clk 0:00:10]}  Rd5 {[%clk 0:00:18]} 82. Rb3 {[%clk 0:00:11]}  Kf6 {[%clk 0:00:19]} 83. Rb5 {[%clk 0:00:11]}  Rd6 {[%clk 0:00:19]} 84. Ke4 {[%clk 0:00:11]}  Re6+ {[%clk 0:00:19]} 85. Kd4 {[%clk 0:00:12]}  Rd6+ {[%clk 0:00:20]} 86. Rd5 {[%clk 0:00:12]}  Rb6 {[%clk 0:00:19]} 87. Rf5+ {[%clk 0:00:12]} 1-0


[Site "https://www.chess.com"]